[Event "Titled Tuesday Blitz July 25 Early 2023"]
[White "Turayev, Shahruh"]
[Black "Bacrot, Etienne"]
[WhiteFideId "14003856"]
[BlackFideId "605506"]
[WhiteElo "2712"]
[BlackElo "2864"]
[Result "0-1"]
[Round "5"]
[TimeControl "180+2"]
[Date "2023.07.25"]
[WhiteClock "0:00:34"]
[BlackClock "0:00:22"]
[Board "31"]

1. e4 {[%clk 0:02:59]}  c5 {[%clk 0:02:59]} 2. Nc3 {[%clk 0:02:59]}  Nc6 {[%clk 0:02:59]} 3. Bb5 {[%clk 0:02:58]}  Nd4 {[%clk 0:02:59]} 4. Bc4 {[%clk 0:02:58]}  e6 {[%clk 0:02:59]} 5. Nge2 {[%clk 0:02:59]}  a6 {[%clk 0:02:58]} 6. a4 {[%clk 0:02:58]}  Nc6 {[%clk 0:02:54]} 7. O-O {[%clk 0:02:58]}  Nf6 {[%clk 0:02:54]} 8. d3 {[%clk 0:02:59]}  d5 {[%clk 0:02:54]} 9. exd5 {[%clk 0:02:53]}  exd5 {[%clk 0:02:54]} 10. Ba2 {[%clk 0:02:51]}  d4 {[%clk 0:02:49]} 11. Ne4 {[%clk 0:02:50]}  Nxe4 {[%clk 0:02:49]} 12. dxe4 {[%clk 0:02:50]}  Be7 {[%clk 0:02:49]} 13. Ng3 {[%clk 0:02:47]}  O-O {[%clk 0:02:49]} 14. f4 {[%clk 0:02:40]}  Be6 {[%clk 0:02:26]} 15. Bxe6 {[%clk 0:02:12]}  fxe6 {[%clk 0:02:27]} 16. Qg4 {[%clk 0:02:12]}  Qd7 {[%clk 0:02:27]} 17. Nh5 {[%clk 0:02:13]}  g6 {[%clk 0:02:27]} 18. Bd2 {[%clk 0:02:02]}  c4 {[%clk 0:02:18]} 19. Rae1 {[%clk 0:01:59]}  Bb4 {[%clk 0:01:26]} 20. Re2 {[%clk 0:01:14]}  d3 {[%clk 0:01:23]} 21. cxd3 {[%clk 0:01:13]}  cxd3 {[%clk 0:01:23]} 22. Ref2 {[%clk 0:01:13]}  Bc5 {[%clk 0:01:23]} 23. Kh1 {[%clk 0:01:10]}  Bxf2 {[%clk 0:01:20]} 24. Rxf2 {[%clk 0:01:11]}  Ne5 {[%clk 0:00:52]} 25. fxe5 {[%clk 0:01:11]}  Rxf2 {[%clk 0:00:52]} 26. Nf6+ {[%clk 0:01:11]}  Kh8 {[%clk 0:00:35]} 27. h3 {[%clk 0:01:09]}  Qf7 {[%clk 0:00:28]} 28. Qg5 {[%clk 0:00:59]}  Rc8 {[%clk 0:00:27]} 29. Be3 {[%clk 0:00:44]}  Re2 {[%clk 0:00:24]} 30. Kh2 {[%clk 0:00:39]}  Rcc2 {[%clk 0:00:23]} 31. Kg3 {[%clk 0:00:34]}  Rxg2+ {[%clk 0:00:22]} 0-1


[Site "https://www.chess.com"]

[Event "Titled Tuesday Blitz July 25 Early 2023"]
[White "Moroni, Luca Jr"]
[Black "Williams, Simon K"]
[WhiteFideId "865834"]
[BlackFideId "404454"]
[WhiteElo "2860"]
[BlackElo "2717"]
[Result "1-0"]
[Round "5"]
[TimeControl "180+2"]
[Date "2023.07.25"]
[WhiteClock "0:00:03"]
[BlackClock "0:00:00"]
[Board "32"]

1. d4 {[%clk 0:03:00]}  e6 {[%clk 0:02:59]} 2. Nf3 {[%clk 0:03:00]}  f5 {[%clk 0:02:59]} 3. g3 {[%clk 0:02:59]}  Nf6 {[%clk 0:02:59]} 4. Bg2 {[%clk 0:03:00]}  Be7 {[%clk 0:02:59]} 5. b3 {[%clk 0:03:01]}  O-O {[%clk 0:02:59]} 6. Bb2 {[%clk 0:03:01]}  d6 {[%clk 0:02:59]} 7. Nbd2 {[%clk 0:03:01]}  a5 {[%clk 0:02:58]} 8. O-O {[%clk 0:02:57]}  a4 {[%clk 0:02:58]} 9. c4 {[%clk 0:02:58]}  a3 {[%clk 0:02:49]} 10. Bc3 {[%clk 0:02:58]}  Nc6 {[%clk 0:02:43]} 11. e3 {[%clk 0:02:48]}  Ne4 {[%clk 0:02:31]} 12. Nxe4 {[%clk 0:02:48]}  fxe4 {[%clk 0:02:32]} 13. Nd2 {[%clk 0:02:48]}  d5 {[%clk 0:02:32]} 14. f3 {[%clk 0:02:47]}  exf3 {[%clk 0:02:31]} 15. Nxf3 {[%clk 0:02:45]}  b6 {[%clk 0:02:20]} 16. Rf2 {[%clk 0:02:30]}  Bb7 {[%clk 0:02:15]} 17. Qc2 {[%clk 0:02:07]}  Qd6 {[%clk 0:01:57]} 18. Re1 {[%clk 0:02:00]}  Nb4 {[%clk 0:01:52]} 19. Qb1 {[%clk 0:01:54]}  c5 {[%clk 0:01:50]} 20. Bxb4 {[%clk 0:01:37]}  cxb4 {[%clk 0:01:50]} 21. cxd5 {[%clk 0:01:37]}  exd5 {[%clk 0:01:43]} 22. Rc1 {[%clk 0:01:30]}  Bc8 {[%clk 0:01:33]} 23. Ne5 {[%clk 0:01:23]}  Rxf2 {[%clk 0:01:32]} 24. Kxf2 {[%clk 0:01:24]}  Bb7 {[%clk 0:01:16]} 25. Kg1 {[%clk 0:01:21]}  Bf6 {[%clk 0:01:15]} 26. Qf5 {[%clk 0:01:15]}  Re8 {[%clk 0:01:13]} 27. Ng4 {[%clk 0:01:11]}  Bd8 {[%clk 0:00:58]} 28. Qf4 {[%clk 0:01:05]}  Qxf4 {[%clk 0:00:45]} 29. gxf4 {[%clk 0:01:05]}  Re7 {[%clk 0:00:28]} 30. Kf2 {[%clk 0:01:03]}  Rc7 {[%clk 0:00:28]} 31. Rxc7 {[%clk 0:00:56]}  Bxc7 {[%clk 0:00:29]} 32. Ne5 {[%clk 0:00:55]}  Bxe5 {[%clk 0:00:27]} 33. dxe5 {[%clk 0:00:52]}  Kf7 {[%clk 0:00:27]} 34. Ke2 {[%clk 0:00:52]}  Ba6+ {[%clk 0:00:22]} 35. Kd2 {[%clk 0:00:52]}  Ke6 {[%clk 0:00:22]} 36. Bh3+ {[%clk 0:00:52]}  Ke7 {[%clk 0:00:22]} 37. Bf5 {[%clk 0:00:50]}  g6 {[%clk 0:00:22]} 38. Bd3 {[%clk 0:00:48]}  Bc8 {[%clk 0:00:21]} 39. Bc2 {[%clk 0:00:34]}  Ba6 {[%clk 0:00:21]} 40. Ke1 {[%clk 0:00:28]}  Ke6 {[%clk 0:00:19]} 41. Kf2 {[%clk 0:00:27]}  Bb5 {[%clk 0:00:19]} 42. Kf3 {[%clk 0:00:26]}  Ba6 {[%clk 0:00:18]} 43. Kg4 {[%clk 0:00:25]}  d4 {[%clk 0:00:17]} 44. exd4 {[%clk 0:00:24]}  Kd5 {[%clk 0:00:17]} 45. h4 {[%clk 0:00:18]}  Kxd4 {[%clk 0:00:16]} 46. h5 {[%clk 0:00:18]}  Kc3 {[%clk 0:00:14]} 47. Bxg6 {[%clk 0:00:14]}  Kb2 {[%clk 0:00:10]} 48. f5 {[%clk 0:00:12]}  Kxa2 {[%clk 0:00:10]} 49. f6 {[%clk 0:00:13]}  Kb2 {[%clk 0:00:08]} 50. f7 {[%clk 0:00:13]}  a2 {[%clk 0:00:09]} 51. f8=Q {[%clk 0:00:13]}  a1=Q {[%clk 0:00:09]} 52. Qf2+ {[%clk 0:00:14]}  Ka3 {[%clk 0:00:10]} 53. Bxh7 {[%clk 0:00:10]}  Qxe5 {[%clk 0:00:09]} 54. Bf5 {[%clk 0:00:07]}  Be2+ {[%clk 0:00:09]} 55. Kg5 {[%clk 0:00:07]}  Bd3 {[%clk 0:00:09]} 56. h6 {[%clk 0:00:06]}  Kxb3 {[%clk 0:00:09]} 57. Qf3 {[%clk 0:00:06]}  Qe7+ {[%clk 0:00:04]} 58. Kg4 {[%clk 0:00:04]}  Ka4 {[%clk 0:00:01]} 59. Qxd3 {[%clk 0:00:04]}  b3 {[%clk 0:00:02]} 60. h7 {[%clk 0:00:04]}  Ka3 {[%clk 0:00:02]} 61. h8=Q {[%clk 0:00:03]}  Ka2 {[%clk 0:00:00]} 62. Qhc3 {[%clk 0:00:03]} 1-0


[Site "https://www.chess.com"]

[Event "Titled Tuesday Blitz July 25 Early 2023"]
[White "Koellner, Ruben Gideon"]
[Black "KhalilMousavi98"]
[WhiteFideId "12993093"]
[WhiteElo "2709"]
[BlackElo "2856"]
[Result "1-0"]
[Round "5"]
[TimeControl "180+2"]
[Date "2023.07.25"]
[WhiteClock "0:00:08"]
[BlackClock "0:00:00"]
[Board "33"]

1. d4 {[%clk 0:01:27]}  Nf6 {[%clk 0:02:48]} 2. Nf3 {[%clk 0:01:26]}  e6 {[%clk 0:02:46]} 3. Nbd2 {[%clk 0:01:24]}  c5 {[%clk 0:02:42]} 4. e3 {[%clk 0:01:24]}  cxd4 {[%clk 0:02:40]} 5. exd4 {[%clk 0:01:25]}  b6 {[%clk 0:02:40]} 6. c3 {[%clk 0:01:25]}  Bb7 {[%clk 0:02:40]} 7. Bd3 {[%clk 0:01:25]}  Bd6 {[%clk 0:02:40]} 8. O-O {[%clk 0:01:25]}  Bc7 {[%clk 0:02:41]} 9. Re1 {[%clk 0:01:25]}  O-O {[%clk 0:02:42]} 10. h3 {[%clk 0:01:26]}  Re8 {[%clk 0:02:38]} 11. Ne5 {[%clk 0:01:24]}  d6 {[%clk 0:02:38]} 12. Nef3 {[%clk 0:01:24]}  Nbd7 {[%clk 0:02:38]} 13. Ne4 {[%clk 0:01:23]}  Nxe4 {[%clk 0:02:38]} 14. Bxe4 {[%clk 0:01:24]}  Bxe4 {[%clk 0:02:38]} 15. Rxe4 {[%clk 0:01:25]}  d5 {[%clk 0:02:39]} 16. Re1 {[%clk 0:01:24]}  b5 {[%clk 0:02:39]} 17. a3 {[%clk 0:01:24]}  a5 {[%clk 0:02:38]} 18. Bd2 {[%clk 0:01:24]}  Rb8 {[%clk 0:02:38]} 19. Qe2 {[%clk 0:01:24]}  Bd6 {[%clk 0:02:32]} 20. Rec1 {[%clk 0:01:22]}  a4 {[%clk 0:02:24]} 21. Re1 {[%clk 0:01:20]}  Qc7 {[%clk 0:02:24]} 22. Rad1 {[%clk 0:01:20]}  Qc6 {[%clk 0:02:22]} 23. Qd3 {[%clk 0:01:18]}  Qc4 {[%clk 0:02:19]} 24. Bc1 {[%clk 0:01:15]}  Qxd3 {[%clk 0:02:13]} 25. Rxd3 {[%clk 0:01:16]}  Rec8 {[%clk 0:02:13]} 26. g3 {[%clk 0:01:15]}  Nb6 {[%clk 0:02:10]} 27. Kg2 {[%clk 0:01:14]}  Nc4 {[%clk 0:02:10]} 28. Re2 {[%clk 0:01:14]}  h6 {[%clk 0:02:07]} 29. Nd2 {[%clk 0:01:14]}  Rc6 {[%clk 0:02:03]} 30. f4 {[%clk 0:01:13]}  Rbc8 {[%clk 0:01:56]} 31. Nxc4 {[%clk 0:01:07]}  bxc4 {[%clk 0:01:34]} 32. Rde3 {[%clk 0:01:07]}  g6 {[%clk 0:01:25]} 33. Kf3 {[%clk 0:01:06]}  Kg7 {[%clk 0:01:22]} 34. Re1 {[%clk 0:01:05]}  Rb6 {[%clk 0:01:20]} 35. R3e2 {[%clk 0:01:06]}  Rcb8 {[%clk 0:01:20]} 36. g4 {[%clk 0:01:05]}  Rh8 {[%clk 0:01:17]} 37. f5 {[%clk 0:01:00]}  exf5 {[%clk 0:01:14]} 38. gxf5 {[%clk 0:01:00]}  gxf5 {[%clk 0:01:14]} 39. Re8 {[%clk 0:00:57]}  Rxe8 {[%clk 0:01:12]} 40. Rxe8 {[%clk 0:00:56]}  Rb8 {[%clk 0:01:11]} 41. Re2 {[%clk 0:00:44]}  Bc7 {[%clk 0:00:54]} 42. Re7 {[%clk 0:00:27]}  Bd6 {[%clk 0:00:49]} 43. Rd7 {[%clk 0:00:22]}  Rb6 {[%clk 0:00:49]} 44. Ra7 {[%clk 0:00:20]}  Bh2 {[%clk 0:00:37]} 45. Rxa4 {[%clk 0:00:16]}  f4 {[%clk 0:00:25]} 46. Kg2 {[%clk 0:00:09]}  Bg3 {[%clk 0:00:21]} 47. Ra5 {[%clk 0:00:09]}  Re6 {[%clk 0:00:20]} 48. Kf3 {[%clk 0:00:07]}  Bh2 {[%clk 0:00:17]} 49. Rxd5 {[%clk 0:00:06]}  Re1 {[%clk 0:00:12]} 50. Bxf4 {[%clk 0:00:06]}  Rf1+ {[%clk 0:00:12]} 51. Kg2 {[%clk 0:00:07]}  Rxf4 {[%clk 0:00:12]} 52. Kxh2 {[%clk 0:00:07]}  Rf2+ {[%clk 0:00:13]} 53. Kg3 {[%clk 0:00:07]}  Rxb2 {[%clk 0:00:14]} 54. Rc5 {[%clk 0:00:08]}  Rb3 {[%clk 0:00:14]} 55. Rxc4 {[%clk 0:00:09]}  Rxa3 {[%clk 0:00:14]} 56. d5 {[%clk 0:00:09]}  Kf6 {[%clk 0:00:14]} 57. Kf4 {[%clk 0:00:10]}  Ra1 {[%clk 0:00:14]} 58. Rd4 {[%clk 0:00:10]}  Rf1+ {[%clk 0:00:14]} 59. Ke3 {[%clk 0:00:10]}  Re1+ {[%clk 0:00:13]} 60. Kd3 {[%clk 0:00:11]}  Ke5 {[%clk 0:00:10]} 61. Kc4 {[%clk 0:00:07]}  Kd6 {[%clk 0:00:10]} 62. Rf4 {[%clk 0:00:07]}  Re7 {[%clk 0:00:04]} 63. Kd4 {[%clk 0:00:05]}  Ra7 {[%clk 0:00:02]} 64. Rf6+ {[%clk 0:00:05]}  Ke7 {[%clk 0:00:02]} 65. Rxh6 {[%clk 0:00:05]}  Ra4+ {[%clk 0:00:03]} 66. c4 {[%clk 0:00:06]}  Ra3 {[%clk 0:00:03]} 67. Rh4 {[%clk 0:00:06]}  Ra1 {[%clk 0:00:03]} 68. Re4+ {[%clk 0:00:06]}  Kd7 {[%clk 0:00:03]} 69. Rf4 {[%clk 0:00:07]}  Rd1+ {[%clk 0:00:04]} 70. Kc5 {[%clk 0:00:07]}  Ke7 {[%clk 0:00:04]} 71. d6+ {[%clk 0:00:07]}  Ke6 {[%clk 0:00:03]} 72. Re4+ {[%clk 0:00:07]}  Kf6 {[%clk 0:00:01]} 73. Rd4 {[%clk 0:00:08]}  Ra1 {[%clk 0:00:00]} 74. d7 {[%clk 0:00:08]} 1-0


[Site "https://www.chess.com"]

[Event "Titled Tuesday Blitz July 25 Early 2023"]
[White "Ilamparthi A R"]
[Black "Panesar Vedant"]
[WhiteFideId "45015775"]
[BlackFideId "35033018"]
[WhiteElo "2853"]
[BlackElo "2709"]
[Result "0-1"]
[Round "5"]
[TimeControl "180+2"]
[Date "2023.07.25"]
[WhiteClock "0:00:12"]
[BlackClock "0:00:20"]
[Board "34"]

1. e4 {[%clk 0:03:00]}  e5 {[%clk 0:02:59]} 2. Nf3 {[%clk 0:03:00]}  Nf6 {[%clk 0:03:00]} 3. d3 {[%clk 0:03:00]}  Nc6 {[%clk 0:03:00]} 4. g3 {[%clk 0:03:00]}  Bc5 {[%clk 0:03:00]} 5. Bg2 {[%clk 0:03:00]}  d6 {[%clk 0:03:00]} 6. O-O {[%clk 0:03:00]}  h5 {[%clk 0:02:57]} 7. h4 {[%clk 0:02:54]}  Bg4 {[%clk 0:02:56]} 8. c3 {[%clk 0:02:52]}  Qd7 {[%clk 0:02:56]} 9. b4 {[%clk 0:02:50]}  Bb6 {[%clk 0:02:56]} 10. a4 {[%clk 0:02:51]}  a5 {[%clk 0:02:56]} 11. b5 {[%clk 0:02:49]}  Ne7 {[%clk 0:02:57]} 12. Nbd2 {[%clk 0:02:49]}  g5 {[%clk 0:02:52]} 13. hxg5 {[%clk 0:02:47]}  Nh7 {[%clk 0:02:53]} 14. Nc4 {[%clk 0:02:47]}  h4 {[%clk 0:02:50]} 15. Nxb6 {[%clk 0:02:43]}  cxb6 {[%clk 0:02:49]} 16. gxh4 {[%clk 0:02:43]}  Ng6 {[%clk 0:02:49]} 17. h5 {[%clk 0:02:22]}  Bxh5 {[%clk 0:02:46]} 18. Nxe5 {[%clk 0:02:22]}  dxe5 {[%clk 0:02:17]} 19. Qxh5 {[%clk 0:02:21]}  Nhf8 {[%clk 0:02:14]} 20. Qf3 {[%clk 0:02:20]}  Ne6 {[%clk 0:02:15]} 21. Bh3 {[%clk 0:02:02]}  O-O-O {[%clk 0:01:59]} 22. Be3 {[%clk 0:01:49]}  Kc7 {[%clk 0:01:51]} 23. d4 {[%clk 0:01:36]}  Kb8 {[%clk 0:01:07]} 24. Bxe6 {[%clk 0:01:33]}  fxe6 {[%clk 0:01:04]} 25. dxe5 {[%clk 0:01:30]}  Qh7 {[%clk 0:00:53]} 26. Rfd1 {[%clk 0:01:19]}  Rdf8 {[%clk 0:00:39]} 27. Qg2 {[%clk 0:01:19]}  Nh4 {[%clk 0:00:37]} 28. Qg3 {[%clk 0:01:18]}  Qxe4 {[%clk 0:00:31]} 29. Rd7 {[%clk 0:00:26]}  Rf3 {[%clk 0:00:19]} 30. Qh2 {[%clk 0:00:12]}  Rxe3 {[%clk 0:00:20]} 0-1


[Site "https://www.chess.com"]

[Event "Titled Tuesday Blitz July 25 Early 2023"]
[White "Sychev, Klementy"]
[Black "Vaishali, Rameshbabu"]
[WhiteFideId "4114060"]
[BlackFideId "5091756"]
[WhiteElo "2838"]
[BlackElo "2706"]
[Result "1-0"]
[Round "5"]
[TimeControl "180+2"]
[Date "2023.07.25"]
[WhiteClock "0:00:03"]
[BlackClock "0:00:03"]
[Board "36"]

1. e4 {[%clk 0:03:00]}  e5 {[%clk 0:02:59]} 2. Nf3 {[%clk 0:02:57]}  Nc6 {[%clk 0:02:59]} 3. d4 {[%clk 0:02:56]}  exd4 {[%clk 0:03:00]} 4. c3 {[%clk 0:02:56]}  d5 {[%clk 0:02:37]} 5. exd5 {[%clk 0:02:55]}  Qxd5 {[%clk 0:02:37]} 6. cxd4 {[%clk 0:02:55]}  Bg4 {[%clk 0:02:32]} 7. Be2 {[%clk 0:02:55]}  Nf6 {[%clk 0:02:30]} 8. Nc3 {[%clk 0:02:52]}  Qh5 {[%clk 0:01:58]} 9. O-O {[%clk 0:02:38]}  Bd6 {[%clk 0:01:47]} 10. Nb5 {[%clk 0:01:55]}  Bxh2+ {[%clk 0:01:06]} 11. Nxh2 {[%clk 0:01:56]}  Bxe2 {[%clk 0:01:06]} 12. Re1 {[%clk 0:01:57]}  Qxb5 {[%clk 0:00:47]} 13. Rxe2+ {[%clk 0:01:57]}  Ne7 {[%clk 0:00:34]} 14. a4 {[%clk 0:01:48]}  Qd7 {[%clk 0:00:25]} 15. Bg5 {[%clk 0:01:45]}  O-O-O {[%clk 0:00:24]} 16. Rc1 {[%clk 0:01:41]}  Kb8 {[%clk 0:00:21]} 17. Nf3 {[%clk 0:01:41]}  Ned5 {[%clk 0:00:19]} 18. Ne5 {[%clk 0:01:41]}  Qf5 {[%clk 0:00:12]} 19. Nxf7 {[%clk 0:01:35]}  Rdf8 {[%clk 0:00:09]} 20. Bxf6 {[%clk 0:01:34]}  Rxf7 {[%clk 0:00:05]} 21. Be5 {[%clk 0:01:34]}  Ka8 {[%clk 0:00:05]} 22. Qb3 {[%clk 0:01:34]}  c6 {[%clk 0:00:05]} 23. a5 {[%clk 0:01:34]}  a6 {[%clk 0:00:06]} 24. Qa4 {[%clk 0:01:32]}  Qg6 {[%clk 0:00:05]} 25. Rce1 {[%clk 0:01:22]}  h5 {[%clk 0:00:05]} 26. Bh2 {[%clk 0:01:19]}  Rff8 {[%clk 0:00:05]} 27. Re6 {[%clk 0:01:16]}  Qg5 {[%clk 0:00:04]} 28. Rxc6 {[%clk 0:01:11]}  bxc6 {[%clk 0:00:02]} 29. Qxc6+ {[%clk 0:01:10]}  Ka7 {[%clk 0:00:03]} 30. Re6 {[%clk 0:01:08]}  Nb4 {[%clk 0:00:01]} 31. Qb6+ {[%clk 0:00:58]}  Ka8 {[%clk 0:00:02]} 32. Qxb4 {[%clk 0:00:57]}  Qc1+ {[%clk 0:00:02]} 33. Re1 {[%clk 0:00:57]}  Qc6 {[%clk 0:00:03]} 34. Be5 {[%clk 0:00:39]}  Re8 {[%clk 0:00:03]} 35. Re3 {[%clk 0:00:33]}  h4 {[%clk 0:00:03]} 36. Rc3 {[%clk 0:00:32]}  Qd5 {[%clk 0:00:03]} 37. Rc5 {[%clk 0:00:23]}  Qe4 {[%clk 0:00:03]} 38. Qb6 {[%clk 0:00:19]}  Rh6 {[%clk 0:00:02]} 39. Qb3 {[%clk 0:00:05]}  Rg6 {[%clk 0:00:02]} 40. f3 {[%clk 0:00:02]}  Qe1+ {[%clk 0:00:02]} 41. Kh2 {[%clk 0:00:02]}  h3 {[%clk 0:00:02]} 42. Qd5+ {[%clk 0:00:02]}  Ka7 {[%clk 0:00:02]} 43. Rc7+ {[%clk 0:00:02]}  Kb8 {[%clk 0:00:03]} 44. Qb7# {[%clk 0:00:03]} 1-0


[Site "https://www.chess.com"]

[Event "Titled Tuesday Blitz July 25 Early 2023"]
[White "Nagy, Gabor"]
[Black "Antal, Gergely"]
[WhiteFideId "737119"]
[BlackFideId "717312"]
[WhiteElo "2793"]
[BlackElo "2676"]
[Result "0-1"]
[Round "5"]
[TimeControl "180+2"]
[Date "2023.07.25"]
[WhiteClock "0:00:00"]
[BlackClock "0:00:12"]
[Board "45"]

1. d4 {[%clk 0:02:53]}  f5 {[%clk 0:02:58]} 2. Nc3 {[%clk 0:02:51]}  Nf6 {[%clk 0:02:57]} 3. Bf4 {[%clk 0:02:52]}  g6 {[%clk 0:02:46]} 4. e3 {[%clk 0:02:50]}  Bg7 {[%clk 0:02:46]} 5. h4 {[%clk 0:02:50]}  h6 {[%clk 0:02:44]} 6. Bc4 {[%clk 0:02:49]}  e6 {[%clk 0:02:42]} 7. Nf3 {[%clk 0:02:47]}  d6 {[%clk 0:02:38]} 8. Qe2 {[%clk 0:02:29]}  Qe7 {[%clk 0:02:35]} 9. O-O-O {[%clk 0:02:28]}  a6 {[%clk 0:02:18]} 10. e4 {[%clk 0:02:25]}  b5 {[%clk 0:01:39]} 11. Bd3 {[%clk 0:02:16]}  b4 {[%clk 0:01:39]} 12. Na4 {[%clk 0:02:02]}  Bd7 {[%clk 0:01:37]} 13. exf5 {[%clk 0:01:58]}  gxf5 {[%clk 0:01:32]} 14. b3 {[%clk 0:01:47]}  Bxa4 {[%clk 0:01:32]} 15. bxa4 {[%clk 0:01:48]}  Nd5 {[%clk 0:01:32]} 16. Bd2 {[%clk 0:01:46]}  Nc3 {[%clk 0:01:06]} 17. Bxc3 {[%clk 0:01:45]}  bxc3 {[%clk 0:01:07]} 18. Rde1 {[%clk 0:01:46]}  e5 {[%clk 0:01:03]} 19. dxe5 {[%clk 0:01:44]}  d5 {[%clk 0:01:00]} 20. Qe3 {[%clk 0:01:35]}  Nc6 {[%clk 0:00:52]} 21. Nd4 {[%clk 0:01:31]}  Nxd4 {[%clk 0:00:25]} 22. Qxd4 {[%clk 0:01:32]}  O-O {[%clk 0:00:21]} 23. Qxc3 {[%clk 0:01:28]}  c5 {[%clk 0:00:21]} 24. f4 {[%clk 0:01:19]}  c4 {[%clk 0:00:21]} 25. Be2 {[%clk 0:01:18]}  Qc5 {[%clk 0:00:21]} 26. Rd1 {[%clk 0:01:09]}  Rfd8 {[%clk 0:00:20]} 27. Rd4 {[%clk 0:01:09]}  Kh8 {[%clk 0:00:18]} 28. Rhd1 {[%clk 0:01:09]}  Rab8 {[%clk 0:00:17]} 29. Kd2 {[%clk 0:01:04]}  Qe7 {[%clk 0:00:12]} 30. g3 {[%clk 0:01:03]}  Rb4 {[%clk 0:00:10]} 31. Ke1 {[%clk 0:01:02]}  Rxa4 {[%clk 0:00:11]} 32. Rxd5 {[%clk 0:01:01]}  Rxd5 {[%clk 0:00:11]} 33. Rxd5 {[%clk 0:01:01]}  Rxa2 {[%clk 0:00:12]} 34. Qxc4 {[%clk 0:01:00]}  Ra1+ {[%clk 0:00:12]} 35. Kf2 {[%clk 0:00:59]}  Qa7+ {[%clk 0:00:11]} 36. Qd4 {[%clk 0:00:58]}  Qxd4+ {[%clk 0:00:12]} 37. Rxd4 {[%clk 0:00:59]}  Bf8 {[%clk 0:00:13]} 38. Rd8 {[%clk 0:00:58]}  Kg7 {[%clk 0:00:13]} 39. Rd7+ {[%clk 0:00:59]}  Kh8 {[%clk 0:00:12]} 40. Bd3 {[%clk 0:00:53]}  Bc5+ {[%clk 0:00:13]} 41. Kf3 {[%clk 0:00:52]}  Ra3 {[%clk 0:00:12]} 42. e6 {[%clk 0:00:51]}  Kg8 {[%clk 0:00:12]} 43. g4 {[%clk 0:00:50]}  fxg4+ {[%clk 0:00:12]} 44. Kxg4 {[%clk 0:00:51]}  Kf8 {[%clk 0:00:12]} 45. f5 {[%clk 0:00:51]}  Be7 {[%clk 0:00:12]} 46. f6 {[%clk 0:00:51]}  Bxf6 {[%clk 0:00:12]} 47. Rg7 {[%clk 0:00:52]}  Bxg7 {[%clk 0:00:12]} 48. e7+ {[%clk 0:00:00]}  Kxe7 {[%clk 0:00:12]} 0-1


[Site "https://www.chess.com"]

[Event "Titled Tuesday Blitz July 25 Early 2023"]
[White "Fiorito, Joaquin"]
[Black "Shuvalova, Polina"]
[WhiteFideId "180173"]
[BlackFideId "24171760"]
[WhiteElo "2788"]
[BlackElo "2668"]
[Result "1-0"]
[Round "5"]
[TimeControl "180+2"]
[Date "2023.07.25"]
[WhiteClock "0:00:06"]
[BlackClock "0:00:00"]
[Board "46"]

1. d4 {[%clk 0:03:00]}  Nf6 {[%clk 0:02:59]} 2. c4 {[%clk 0:02:59]}  e6 {[%clk 0:02:53]} 3. Nc3 {[%clk 0:02:59]}  d5 {[%clk 0:02:52]} 4. cxd5 {[%clk 0:02:58]}  Nxd5 {[%clk 0:02:53]} 5. e4 {[%clk 0:02:58]}  Nxc3 {[%clk 0:02:53]} 6. bxc3 {[%clk 0:02:59]}  c5 {[%clk 0:02:54]} 7. Nf3 {[%clk 0:03:00]}  cxd4 {[%clk 0:02:53]} 8. cxd4 {[%clk 0:03:01]}  Bb4+ {[%clk 0:02:54]} 9. Bd2 {[%clk 0:03:02]}  Bxd2+ {[%clk 0:02:54]} 10. Qxd2 {[%clk 0:03:03]}  O-O {[%clk 0:02:55]} 11. Bc4 {[%clk 0:03:03]}  Nd7 {[%clk 0:02:54]} 12. O-O {[%clk 0:03:03]}  b6 {[%clk 0:02:55]} 13. d5 {[%clk 0:03:04]}  Nf6 {[%clk 0:02:51]} 14. Rfe1 {[%clk 0:03:01]}  exd5 {[%clk 0:02:48]} 15. exd5 {[%clk 0:03:00]}  Bb7 {[%clk 0:02:48]} 16. Rad1 {[%clk 0:02:58]}  Qd6 {[%clk 0:02:42]} 17. Bb3 {[%clk 0:02:48]}  Rfe8 {[%clk 0:02:27]} 18. Nd4 {[%clk 0:02:31]}  g6 {[%clk 0:02:10]} 19. Nc2 {[%clk 0:02:15]}  Rad8 {[%clk 0:02:03]} 20. Rxe8+ {[%clk 0:02:12]}  Rxe8 {[%clk 0:02:02]} 21. Ne3 {[%clk 0:02:13]}  Kg7 {[%clk 0:01:48]} 22. h3 {[%clk 0:02:12]}  h5 {[%clk 0:01:43]} 23. Qb2 {[%clk 0:02:02]}  Qe5 {[%clk 0:01:37]} 24. Qxe5 {[%clk 0:01:43]}  Rxe5 {[%clk 0:01:37]} 25. d6 {[%clk 0:01:43]}  Bc6 {[%clk 0:01:27]} 26. Rc1 {[%clk 0:01:40]}  Rc5 {[%clk 0:01:26]} 27. Rd1 {[%clk 0:01:29]}  a5 {[%clk 0:01:14]} 28. Nd5 {[%clk 0:00:19]}  a4 {[%clk 0:00:17]} 29. Nxf6 {[%clk 0:00:19]}  Kxf6 {[%clk 0:00:18]} 30. d7 {[%clk 0:00:20]}  Bxd7 {[%clk 0:00:18]} 31. Bxf7 {[%clk 0:00:09]}  Bf5 {[%clk 0:00:18]} 32. Bg8 {[%clk 0:00:08]}  Ke5 {[%clk 0:00:17]} 33. Rd8 {[%clk 0:00:06]}  b5 {[%clk 0:00:15]} 34. f3 {[%clk 0:00:05]}  Rc1+ {[%clk 0:00:11]} 35. Kh2 {[%clk 0:00:05]}  Rc2 {[%clk 0:00:12]} 36. Kg3 {[%clk 0:00:05]}  h4+ {[%clk 0:00:12]} 37. Kxh4 {[%clk 0:00:04]}  Rxg2 {[%clk 0:00:11]} 38. Rb8 {[%clk 0:00:03]}  Bd3 {[%clk 0:00:06]} 39. Re8+ {[%clk 0:00:02]}  Kf4 {[%clk 0:00:06]} 40. Rf8+ {[%clk 0:00:02]}  Bf5 {[%clk 0:00:07]} 41. Be6 {[%clk 0:00:02]}  Rxa2 {[%clk 0:00:06]} 42. Bxa2 {[%clk 0:00:02]}  b4 {[%clk 0:00:06]} 43. Be6 {[%clk 0:00:02]}  b3 {[%clk 0:00:05]} 44. Bxb3 {[%clk 0:00:02]}  axb3 {[%clk 0:00:05]} 45. Rb8 {[%clk 0:00:03]}  Bc2 {[%clk 0:00:04]} 46. Rb6 {[%clk 0:00:02]}  g5+ {[%clk 0:00:02]} 47. Kh5 {[%clk 0:00:02]}  Bd1 {[%clk 0:00:03]} 48. Kh6 {[%clk 0:00:02]}  Kxf3 {[%clk 0:00:02]} 49. Kxg5 {[%clk 0:00:03]}  Ke3 {[%clk 0:00:02]} 50. h4 {[%clk 0:00:03]}  Kd4 {[%clk 0:00:02]} 51. Rd6+ {[%clk 0:00:03]}  Kc3 {[%clk 0:00:02]} 52. Rxd1 {[%clk 0:00:04]}  Kc2 {[%clk 0:00:02]} 53. Rg1 {[%clk 0:00:05]}  b2 {[%clk 0:00:02]} 54. h5 {[%clk 0:00:06]}  b1=Q {[%clk 0:00:00]} 55. Rxb1 {[%clk 0:00:06]} 1-0


[Site "https://www.chess.com"]